fUST/lending_fUST_20240424
["ID","MTS","AMOUNT","RATE_DAILY","PERIOD"]
[323341521,1713906654256,-886.08,0.00020273,2]
[323341522,1713906654265,-500.0,0.00020273,2]
[323341523,1713906654274,-500.0,0.00020273,2]
[323341524,1713906654283,-500.0,0.00020273,2]
[323341525,1713906654293,-714.28,0.00020273,2]
[323341526,1713906654303,-156.013071,0.00020273,2]
[323341527,1713906654312,-500.0,0.00020273,2]
[323341528,1713906654322,-500.0,0.00020273,2]
[323341529,1713906654331,-151.0,0.00020273,2]
[323341530,1713906654340,-1022.02,0.00020273,2]
[323341531,1713906654349,-546.63,0.00020273,2]
[323341532,1713906654358,-151.0,0.00020273,2]
[323341533,1713906654368,-295.48177546,0.00020273,2]
[323341534,1713906654377,-500.0,0.00020273,2]
[323341535,1713906654387,-905.67,0.00020273,2]
[323341536,1713906654396,-500.0,0.00020273,2]
[323341537,1713906654406,-711.87,0.00020273,2]
[323341538,1713906654415,-500.0,0.00020273,2]
[323341539,1713906654424,-850.29,0.00020273,2]
[323341540,1713906654434,-500.0,0.00020273,2]
[323341541,1713906654443,-500.0,0.00020273,2]
[323341542,1713906654452,-3203.89,0.00020273,2]
[323341543,1713906654461,-500.0,0.00020273,2]
[323341544,1713906654471,-554.02,0.00020273,2]
[323341545,1713906654480,-949.8,0.00020273,2]
[323341546,1713906654490,-1567.71,0.00020273,2]
[323341547,1713906654499,-500.0,0.00020273,2]
[323341548,1713906654509,-1038.44,0.00020273,2]
[323341549,1713906654518,-483.12347491,0.00020273,2]
[323341550,1713906654527,-500.0,0.00020273,2]
[323341551,1713906654537,-151.0,0.00020273,2]
[323341552,1713906654546,-192.462242,0.00020273,2]
[323341553,1713906654555,-192.462242,0.00020273,2]
[323341554,1713906654564,-500.0,0.00020273,2]
[323341555,1713906654573,-500.0,0.00020273,2]
[323341556,1713906654583,-500.0,0.00020273,2]
[323341557,1713906654594,-500.0,0.00020273,2]
[323341558,1713906654603,-500.0,0.00020273,2]
[323341559,1713906654612,-511.85838127,0.00020273,2]
[323341560,1713906654621,-924.22,0.00020273,2]
[323341561,1713906654630,-902.89,0.00020273,2]
[323341562,1713906654639,-442.624981,0.00020273,2]
[323341563,1713906654648,-500.0,0.00020273,2]
[323341564,1713906654657,-442.624981,0.00020273,2]
[323341565,1713906654666,-993.79,0.00020273,2]
[323341566,1713906654676,-554.07,0.00020273,2]
[323341567,1713906654685,-500.0,0.00020273,2]
[323341568,1713906654695,-873.054518,0.00020273,2]
[323341569,1713906654704,-873.054518,0.00020273,2]
[323341570,1713906654713,-786.38,0.00020273,2]
[323341571,1713906654721,-726.49,0.00020273,2]
[323341572,1713906654731,-500.0,0.00020273,2]
[323341573,1713906654740,-531.87,0.00020273,2]
[323341574,1713906654749,-500.0,0.00020273,2]
[323341575,1713906654758,-2258.36,0.00020273,2]
[323341576,1713906654767,-500.0,0.00020273,2]
[323341577,1713906654776,-1423.75,0.00020273,2]
[323341578,1713906654786,-500.0,0.00020273,2]
[323341579,1713906654794,-900.74,0.00020273,2]
[323341580,1713906654804,-1478.54,0.00020273,2]
[323341581,1713906654813,-151.0,0.00020273,2]
[323341582,1713906654822,-151.0,0.00020273,2]
[323341583,1713906654834,-500.0,0.00020273,2]
[323341584,1713906654846,-500.0,0.00020273,2]
[323341585,1713906654856,-1668.39,0.00020273,2]
[323341586,1713906654865,-678.36,0.00020273,2]
[323341587,1713906654875,-1376.89,0.00020273,2]
[323341588,1713906654885,-547.742032,0.00020273,2]
[323341589,1713906654895,-500.0,0.00020273,2]
[323341590,1713906654905,-296.60357415,0.00020273,2]
[323341591,1713906654914,-500.0,0.00020273,2]
[323341592,1713906654923,-531.893123,0.00020273,2]
[323341593,1713906654933,-2107.07,0.00020273,2]
[323341594,1713906654943,-547.742032,0.00020273,2]
[323341595,1713906654953,-1737.0,0.00020273,2]
[323341596,1713906654963,-531.893123,0.00020273,2]
[323341597,1713906654972,-1067.53,0.00020273,2]
[323341598,1713906654981,-500.0,0.00020273,2]
[323341599,1713906654990,-532.06,0.00020273,2]
[323341600,1713906655000,-692.64,0.00020273,2]
[323341601,1713906655009,-500.0,0.00020273,2]
[323341602,1713906655018,-500.0,0.00020273,2]
[323341603,1713906655028,-1195.52,0.00020273,2]
[323341604,1713906655037,-500.0,0.00020273,2]
[323341605,1713906655046,-1607.99,0.00020273,2]
[323341606,1713906655055,-500.0,0.00020273,2]
[323341607,1713906655064,-860.82,0.00020273,2]
[323341608,1713906655073,-500.0,0.00020273,2]
[323341609,1713906655083,-500.0,0.00020273,2]
[323341610,1713906655092,-531.87,0.00020273,2]
[323341611,1713906655101,-721.01,0.00020273,2]
[323341612,1713906655111,-500.0,0.00020273,2]
[323341613,1713906655121,-500.0,0.00020273,2]
[323341614,1713906655134,-1486.41,0.00020273,2]
[323341615,1713906655143,-500.0,0.00020273,2]
[323341616,1713906655153,-500.0,0.00020273,2]
[323341617,1713906655163,-500.0,0.00020273,2]
[323341618,1713906655173,-499.9984897,0.00020273,2]
[323341619,1713906655182,-1236.23,0.00020273,2]
[323341620,1713906655191,-500.0,0.00020273,2]
[323341621,1713906655201,-2278.12,0.00020273,2]
[323341622,1713906655210,-500.0,0.00020273,2]
[323341623,1713906655220,-10286.09,0.00020273,2]
[323341624,1713906655229,-500.0,0.00020273,2]
[323341625,1713906655238,-1883.18,0.00020273,2]
[323341626,1713906655247,-944.84,0.00020273,2]
[323341627,1713906655256,-924.176083,0.00020273,2]
[323341628,1713906655266,-151.0,0.00020273,2]
[323341629,1713906655275,-574.81,0.00020273,2]
[323341630,1713906655284,-1124.79,0.00020273,2]
[323341631,1713906655294,-745.02,0.00020273,2]
[323341632,1713906655304,-924.176083,0.00020273,2]
[323341633,1713906655313,-151.0,0.00020273,2]
[323341634,1713906655323,-1217.1,0.00020273,2]
[323341635,1713906655332,-500.0,0.00020273,2]
[323341636,1713906655343,-500.0,0.00020273,2]
[323341637,1713906655352,-674.83,0.00020273,2]
[323341638,1713906655361,-3698.81,0.00020273,2]
[323341639,1713906655371,-713.93,0.00020273,2]
[323341640,1713906655380,-500.0,0.00020273,2]
[323341641,1713906655389,-500.0,0.00020273,2]
[323341642,1713906655399,-7456.02,0.00020273,2]
[323341643,1713906655409,-151.268242,0.00020273,2]
[323341644,1713906655419,-500.0,0.00020273,2]
[323341645,1713906655428,-567.42,0.00020273,2]
[323341646,1713906655439,-500.0,0.00020273,2]
[323341647,1713906655448,-7031.43,0.00020273,2]
[323341648,1713906655457,-500.0,0.00020273,2]
[323341649,1713906655466,-500.0,0.00020273,2]
[323341650,1713906655476,-760.73,0.00020273,2]
[323341651,1713906655485,-1432.34,0.00020273,2]
[323341652,1713906655494,-3253.21,0.00020273,2]
[323341653,1713906655504,-281.443884,0.00020273,2]
[323341654,1713906655513,-151.0,0.00020273,2]
[323341655,1713906655523,-5262.87,0.00020273,2]
[323341656,1713906655532,-4015.64,0.00020273,2]
[323341657,1713906655542,-928.49,0.00020273,2]
[323341658,1713906655551,-500.0,0.00020273,2]
[323341659,1713906655561,-500.0,0.00020273,2]
[323341660,1713906655570,-500.0,0.00020273,2]
[323341661,1713906655579,-500.0,0.00020273,2]
[323341662,1713906655588,-500.0,0.00020273,2]
[323341663,1713906655603,-633.96,0.00020273,2]
[323341664,1713906655612,-1467.47,0.00020273,2]
[323341665,1713906655621,-192.747871,0.00020273,2]
[323341666,1713906655630,-500.0,0.00020273,2]
[323341667,1713906655638,-500.0,0.00020273,2]
[323341668,1713906655649,-192.747871,0.00020273,2]
[323341669,1713906655658,-500.0,0.00020273,2]
[323341670,1713906655667,-626.38,0.00020273,2]
[323341671,1713906655676,-944.49,0.00020273,2]
[323341672,1713906655684,-500.0,0.00020273,2]
[323341673,1713906655693,-1655.39,0.00020273,2]
[323341674,1713906655702,-500.0,0.00020273,2]
[323341675,1713906655711,-151.0,0.00020273,2]
[323341676,1713906655720,-500.0,0.00020273,2]
[323341677,1713906655730,-153.443993,0.00020273,2]
[323341678,1713906655739,-500.0,0.00020273,2]
[323341679,1713906655748,-500.0,0.00020273,2]
[323341680,1713906655757,-946.8,0.00020273,2]
[323341681,1713906655767,-2551.94,0.00020273,2]
[323341682,1713906655776,-2595.58,0.00020273,2]
[323341683,1713906655786,-500.0,0.00020273,2]
[323341684,1713906655795,-500.0,0.00020273,2]
[323341685,1713906655804,-1746.36,0.00020273,2]
[323341686,1713906655814,-500.0,0.00020273,2]
[323341687,1713906655823,-814.3,0.00020273,2]
[323341688,1713906655834,-500.0,0.00020273,2]
[323341689,1713906655845,-223.811507,0.00020273,2]
[323341690,1713906655854,-151.0,0.00020273,2]
[323341691,1713906655863,-151.0,0.00020273,2]
[323341692,1713906655873,-599.33,0.00020273,2]
[323341693,1713906655882,-465.43735816,0.00020273,2]
[323341694,1713906655892,-500.0,0.00020273,2]
[323341695,1713906655901,-500.0,0.00020273,2]
[323341696,1713906655910,-817.94,0.00020273,2]
[323341697,1713906655919,-683.42,0.00020273,2]
[323341698,1713906655930,-500.0,0.00020273,2]
[323341699,1713906655940,-543.56,0.00020273,2]
[323341700,1713906655949,-24227.66,0.00020273,2]
[323341701,1713906655959,-500.0,0.00020273,2]
[323341702,1713906655968,-500.0,0.00020273,2]
[323341703,1713906655977,-543.7,0.00020273,2]
[323341704,1713906655987,-184.125163,0.00020273,2]
[323341705,1713906655996,-500.0,0.00020273,2]
[323341706,1713906656006,-184.125163,0.00020273,2]
[323341707,1713906656015,-500.0,0.00020273,2]
[323341708,1713906656025,-892.02,0.00020273,2]
[323341709,1713906656034,-2080.56,0.00020273,2]
[323341710,1713906656043,-7466.61,0.00020273,2]
[323341711,1713906656052,-4787.075324,0.00020273,2]
[323341712,1713906656062,-4787.075324,0.00020273,2]
[323341713,1713906656071,-500.0,0.00020273,2]
[323341714,1713906656080,-10964.76,0.00020273,2]
[323341715,1713906656089,-2008.81,0.00020273,2]
[323341716,1713906656100,-6940.32,0.00020273,2]
[323341717,1713906656109,-726.26,0.00020273,2]
[323341718,1713906656118,-888.98,0.00020273,2]
[323341719,1713906656131,-500.0,0.00020273,2]
[323341720,1713906656140,-500.0,0.00020273,2]
[323341721,1713906656150,-1789.94,0.00020273,2]
[323341722,1713906656160,-500.0,0.00020273,2]
[323341723,1713906656170,-17149.67,0.00020273,2]
[323341724,1713906656180,-14555.01,0.00020273,2]
[323341725,1713906656189,-970.435205,0.00020273,2]
[323341726,1713906656200,-970.435205,0.00020273,2]
[323341727,1713906656209,-168.64645156,0.00020273,2]
[323341728,1713906656219,-1180.31,0.00020273,2]
[323341729,1713906656228,-7963.5,0.00020273,2]
[323341730,1713906656238,-2000.0,0.000203,2]
[323341731,1713906656247,-2000.0,0.000203,2]
[323341732,1713906656257,-151.0,0.00020547,2]
[323341733,1713906656266,-500.0,0.00020547,2]
[323341734,1713906656275,-500.0,0.00020547,2]
[323341735,1713906656285,-520.67,0.00020547,2]
[323341736,1713906656294,-657.21,0.00020547,2]
[323341737,1713906656304,-904.57,0.00020547,2]
[323341738,1713906656313,-151.0,0.00020547,2]
[323341739,1713906656322,-513.66,0.00020547,2]
[323341740,1713906656331,-580.19,0.00020547,2]
[323341741,1713906656342,-589.6,0.00020547,2]
[323341742,1713906656351,-500.0,0.00020547,2]
[323341743,1713906656360,-500.0,0.00020547,2]
[323341744,1713906656370,-1834.44,0.00020547,2]
[323341745,1713906656379,-169.37155114,0.00020547,2]
[323341746,1713906656388,-500.0,0.00020547,2]
[323341747,1713906656398,-500.0,0.00020547,2]
[323341748,1713906656407,-981.79,0.00020547,2]
[323341749,1713906656417,-500.0,0.00020547,2]
[323341750,1713906656426,-151.0,0.00020547,2]
[323341751,1713906656435,-500.0,0.00020547,2]
[323341752,1713906656444,-500.0,0.00020547,2]
[323341753,1713906656453,-501.15572603,0.00020547,2]
[323341754,1713906656463,-527.18,0.00020547,2]
[323341755,1713906656473,-500.0,0.00020547,2]
[323341756,1713906656482,-500.0,0.00020547,2]
[323341757,1713906656491,-151.0,0.00020547,2]
[323341758,1713906656501,-500.0,0.00020547,2]
[323341759,1713906656510,-500.0,0.00020547,2]
[323341760,1713906656520,-500.0,0.00020547,2]
[323341761,1713906656529,-200.269206,0.00020547,2]
[323341762,1713906656539,-504.27,0.00020547,2]
[323341763,1713906656549,-200.269206,0.00020547,2]
[323341764,1713906656558,-500.0,0.00020547,2]
[323341765,1713906656568,-500.0,0.00020547,2]
[323341766,1713906656577,-500.0,0.00020547,2]
[323341767,1713906656586,-500.0,0.00020547,2]
[323341768,1713906656597,-500.0,0.00020547,2]
[323341769,1713906656607,-500.0,0.00020547,2]
[323341770,1713906656616,-618.49311596,0.00020547,2]
[323341771,1713906656626,-500.0,0.00020547,2]
[323341772,1713906656635,-1837.74,0.00020547,2]
[323341773,1713906656645,-500.0,0.00020547,2]
[323341774,1713906656654,-2077.29,0.00020547,2]
[323341775,1713906656664,-500.0,0.00020547,2]
[323341776,1713906656673,-151.0,0.00020547,2]
[323341777,1713906656682,-500.0,0.00020547,2]
[323341778,1713906656691,-500.0,0.00020547,2]
[323341779,1713906656700,-151.0,0.00020547,2]
[323341780,1713906656709,-151.0,0.00020547,2]
[323341781,1713906656719,-500.0,0.00020547,2]
[323341782,1713906656729,-847.99,0.00020547,2]
[323341783,1713906656738,-500.0,0.00020547,2]
[323341784,1713906656747,-1200.21,0.00020547,2]
[323341785,1713906656756,-500.0,0.00020547,2]
[323341786,1713906656766,-1530.74,0.00020547,2]
[323341787,1713906656775,-500.0,0.00020547,2]
[323341788,1713906656901,-1003.63,0.00020547,2]
[323341789,1713906656912,-1106.45,0.00020547,2]
[323341790,1713906656921,-500.0,0.00020547,2]
[323341791,1713906656930,-1277.89,0.00020547,2]
[323341792,1713906656940,-886.08,0.00020547,2]
[323341793,1713906656949,-500.0,0.00020547,2]
[323341794,1713906656958,-500.0,0.00020547,2]
[323341795,1713906656967,-500.0,0.00020547,2]
[323341796,1713906656977,-714.28,0.00020547,2]
[323341797,1713906656986,-500.0,0.00020547,2]
[323341798,1713906656996,-500.0,0.00020547,2]
[323341799,1713906657005,-151.0,0.00020547,2]
[323341800,1713906657014,-1022.02,0.00020547,2]
[323341801,1713906657023,-546.63,0.00020547,2]
[323341802,1713906657032,-151.0,0.00020547,2]
[323341803,1713906657041,-500.0,0.00020547,2]
[323341804,1713906657052,-905.67,0.00020547,2]
[323341805,1713906657061,-500.0,0.00020547,2]
[323341806,1713906657070,-711.87,0.00020547,2]
[323341807,1713906657079,-500.0,0.00020547,2]
[323341808,1713906657089,-850.29,0.00020547,2]
[323341809,1713906657099,-500.0,0.00020547,2]
[323341810,1713906657108,-500.0,0.00020547,2]
[323341811,1713906657117,-3203.89,0.00020547,2]
[323341812,1713906657131,-500.0,0.00020547,2]
[323341813,1713906657141,-554.02,0.00020547,2]
[323341814,1713906657150,-949.8,0.00020547,2]
[323341815,1713906657159,-1567.71,0.00020547,2]
[323341816,1713906657170,-500.0,0.00020547,2]
[323341817,1713906657180,-1038.44,0.00020547,2]
[323341818,1713906657190,-500.0,0.00020547,2]
[323341819,1713906657199,-151.0,0.00020547,2]
[323341820,1713906657209,-500.0,0.00020547,2]
[323341821,1713906657219,-500.0,0.00020547,2]
[323341822,1713906657229,-500.0,0.00020547,2]
[323341823,1713906657238,-500.0,0.00020547,2]
[323341824,1713906657247,-500.0,0.00020547,2]
[323341825,1713906657256,-924.22,0.00020547,2]
[323341826,1713906657266,-902.89,0.00020547,2]
[323341827,1713906657275,-442.624981,0.00020547,2]
[323341828,1713906657285,-500.0,0.00020547,2]
[323341829,1713906657295,-442.624981,0.00020547,2]
[323341830,1713906657304,-993.79,0.00020547,2]
[323341831,1713906657313,-554.07,0.00020547,2]
[323341832,1713906657322,-500.0,0.00020547,2]
[323341833,1713906657332,-873.054518,0.00020547,2]
[323341834,1713906657341,-873.054518,0.00020547,2]
[323341835,1713906657351,-786.38,0.00020547,2]
[323341836,1713906657360,-726.49,0.00020547,2]
[323341837,1713906657370,-500.0,0.00020547,2]
[323341838,1713906657379,-531.87,0.00020547,2]
[323341839,1713906657389,-500.0,0.00020547,2]
[323341840,1713906657398,-2258.36,0.00020547,2]
[323341841,1713906657407,-500.0,0.00020547,2]
[323341842,1713906657417,-1423.75,0.00020547,2]
[323341843,1713906657427,-500.0,0.00020547,2]
[323341844,1713906657436,-900.74,0.00020547,2]
[323341845,1713906657446,-1478.54,0.00020547,2]
[323341846,1713906657455,-151.0,0.00020547,2]
[323341847,1713906657465,-151.0,0.00020547,2]
[323341848,1713906657474,-500.0,0.00020547,2]
[323341849,1713906657484,-500.0,0.00020547,2]
[323341850,1713906657493,-1668.39,0.00020547,2]
[323341851,1713906657503,-678.36,0.00020547,2]
[323341852,1713906657512,-1376.89,0.00020547,2]
[323341853,1713906657522,-547.742032,0.00020547,2]
[323341854,1713906657532,-500.0,0.00020547,2]
[323341855,1713906657542,-500.0,0.00020547,2]
[323341856,1713906657552,-531.893123,0.00020547,2]
[323341857,1713906657562,-2107.07,0.00020547,2]
[323341858,1713906657571,-547.742032,0.00020547,2]
[323341859,1713906657581,-1737.0,0.00020547,2]
[323341860,1713906657590,-531.893123,0.00020547,2]
[323341861,1713906657601,-1067.53,0.00020547,2]
[323341862,1713906657610,-500.0,0.00020547,2]
[323341863,1713906657619,-532.06,0.00020547,2]
[323341864,1713906657629,-692.64,0.00020547,2]
[323341865,1713906657638,-500.0,0.00020547,2]
[323341866,1713906657648,-500.0,0.00020547,2]
[323341867,1713906657657,-1195.52,0.00020547,2]
[323341868,1713906657667,-500.0,0.00020547,2]
[323341869,1713906657676,-1607.99,0.00020547,2]
[323341870,1713906657686,-500.0,0.00020547,2]
[323341871,1713906657695,-860.82,0.00020547,2]
[323341872,1713906657704,-500.0,0.00020547,2]
[323341873,1713906657713,-500.0,0.00020547,2]
[323341874,1713906657722,-531.87,0.00020547,2]
[323341875,1713906657732,-721.01,0.00020547,2]
[323341876,1713906657741,-384.35346897,0.00020547,2]
[323341877,1713906657750,-151.0,0.00020547,2]
[323341878,1713906657760,-500.0,0.00020547,2]
[323341879,1713906657769,-1486.41,0.00020547,2]
[323341880,1713906657778,-500.0,0.00020547,2]
[323341881,1713906657788,-500.0,0.00020547,2]
[323341882,1713906657797,-500.0,0.00020547,2]
[323341883,1713906657807,-210.616359,0.00020547,2]
[323341884,1713906657816,-1236.23,0.00020547,2]
[323341885,1713906657825,-210.616359,0.00020547,2]
[323341886,1713906657834,-500.0,0.00020547,2]
[323341887,1713906657845,-2278.12,0.00020547,2]
[323341888,1713906657854,-823.300687,0.00020547,2]
[323341889,1713906657864,-500.0,0.00020547,2]
[323341890,1713906657874,-10286.09,0.00020547,2]
[323341891,1713906657883,-823.300687,0.00020547,2]
[323341892,1713906657892,-500.0,0.00020547,2]
[323341893,1713906657901,-1093.525067,0.00020547,2]
[323341894,1713906657910,-1883.18,0.00020547,2]
[323341895,1713906657920,-944.84,0.00020547,2]
[323341896,1713906657929,-924.176083,0.00020547,2]
[323341897,1713906657939,-151.0,0.00020547,2]
[323341898,1713906657948,-1093.525067,0.00020547,2]
[323341899,1713906657958,-574.81,0.00020547,2]
[323341900,1713906657967,-1124.79,0.00020547,2]
[323341901,1713906657976,-745.02,0.00020547,2]
[323341902,1713906657986,-924.176083,0.00020547,2]
[323341903,1713906657995,-151.0,0.00020547,2]
[323341904,1713906658005,-1217.1,0.00020547,2]
[323341905,1713906658014,-500.0,0.00020547,2]
[323341906,1713906658023,-500.0,0.00020547,2]
[323341907,1713906658032,-674.83,0.00020547,2]
[323341908,1713906658041,-3698.81,0.00020547,2]
[323341909,1713906658050,-713.93,0.00020547,2]
[323341910,1713906658060,-151.0,0.00020547,2]
[323341911,1713906658069,-500.0,0.00020547,2]
[323341912,1713906658078,-151.0,0.00020547,2]
[323341913,1713906658087,-500.0,0.00020547,2]
[323341914,1713906658097,-7456.02,0.00020547,2]
[323341915,1713906658106,-500.0,0.00020547,2]
[323341916,1713906658116,-567.42,0.00020547,2]
[323341917,1713906658127,-500.0,0.00020547,2]
[323341918,1713906658137,-7031.43,0.00020547,2]
[323341919,1713906658146,-219.565655,0.00020547,2]
[323341920,1713906658155,-500.0,0.00020547,2]
[323341921,1713906658165,-219.565655,0.00020547,2]
[323341922,1713906658174,-760.73,0.00020547,2]
[323341923,1713906658183,-1432.34,0.00020547,2]
[323341924,1713906658193,-3253.21,0.00020547,2]
[323341925,1713906658204,-5262.87,0.00020547,2]
[323341926,1713906658213,-4015.64,0.00020547,2]
[323341927,1713906658222,-151.0,0.00020547,2]
[323341928,1713906658231,-928.49,0.00020547,2]
[323341929,1713906658240,-500.0,0.00020547,2]
[323341930,1713906658249,-500.0,0.00020547,2]
[323341931,1713906658259,-500.0,0.00020547,2]
[323341932,1713906658268,-500.0,0.00020547,2]
[323341933,1713906658277,-500.0,0.00020547,2]
[323341934,1713906658286,-633.96,0.00020547,2]
[323341935,1713906658295,-1467.47,0.00020547,2]
[323341936,1713906658304,-192.747871,0.00020547,2]
[323341937,1713906658313,-500.0,0.00020547,2]
[323341938,1713906658322,-500.0,0.00020547,2]
[323341939,1713906658331,-192.747871,0.00020547,2]
[323341940,1713906658340,-500.0,0.00020547,2]
[323341941,1713906658350,-626.38,0.00020547,2]
[323341942,1713906658359,-944.49,0.00020547,2]
[323341943,1713906658368,-500.0,0.00020547,2]
[323341944,1713906658377,-1655.39,0.00020547,2]
[323341945,1713906658386,-502.16569925,0.00020547,2]
[323341946,1713906658396,-151.0,0.00020547,2]
[323341947,1713906658406,-500.0,0.00020547,2]
[323341948,1713906658415,-500.0,0.00020547,2]
[323341949,1713906658424,-500.0,0.00020547,2]
[323341950,1713906658434,-946.8,0.00020547,2]
[323341951,1713906658444,-2551.94,0.00020547,2]
[323341952,1713906658453,-2595.58,0.00020547,2]
[323341953,1713906658463,-500.0,0.00020547,2]
[323341954,1713906658472,-500.0,0.00020547,2]
[323341955,1713906658482,-1746.36,0.00020547,2]
[323341956,1713906658491,-500.0,0.00020547,2]
[323341957,1713906658500,-814.3,0.00020547,2]
[323341958,1713906658510,-500.0,0.00020547,2]
[323341959,1713906658520,-151.0,0.00020547,2]
[323341960,1713906658529,-151.0,0.00020547,2]
[323341961,1713906658540,-599.33,0.00020547,2]
[323341962,1713906658550,-500.0,0.00020547,2]
[323341963,1713906658559,-500.0,0.00020547,2]
[323341964,1713906658569,-817.94,0.00020547,2]
[323341965,1713906658578,-683.42,0.00020547,2]
[323341966,1713906658588,-500.0,0.00020547,2]
[323341967,1713906658598,-543.56,0.00020547,2]
[323341968,1713906658607,-24227.66,0.00020547,2]
[323341969,1713906658617,-500.0,0.00020547,2]
[323341970,1713906658627,-500.0,0.00020547,2]
[323341971,1713906658636,-543.7,0.00020547,2]
[323341972,1713906658645,-184.125163,0.00020547,2]
[323341973,1713906658655,-504.08988695,0.00020547,2]
[323341974,1713906658665,-184.125163,0.00020547,2]
[323341975,1713906658674,-500.0,0.00020547,2]
[323341976,1713906658683,-892.02,0.00020547,2]
[323341977,1713906658693,-2080.56,0.00020547,2]
[323341978,1713906658703,-7466.61,0.00020547,2]
[323341979,1713906658713,-4787.075324,0.00020547,2]
[323341980,1713906658723,-4787.075324,0.00020547,2]
[323341981,1713906658732,-388.55794728,0.00020547,2]
[323341982,1713906658742,-10964.76,0.00020547,2]
[323341983,1713906658752,-2008.81,0.00020547,2]
[323341984,1713906658761,-6940.32,0.00020547,2]
[323341985,1713906658771,-726.26,0.00020547,2]
[323341986,1713906658781,-888.98,0.00020547,2]
[323341987,1713906658790,-500.0,0.00020547,2]
[323341988,1713906658800,-500.0,0.00020547,2]
[323341989,1713906658809,-1789.94,0.00020547,2]
[323341990,1713906658819,-500.0,0.00020547,2]
[323341991,1713906658829,-17149.67,0.00020547,2]
[323341992,1713906658838,-14555.01,0.00020547,2]
[323341993,1713906658849,-970.435205,0.00020547,2]
[323341994,1713906658858,-970.435205,0.00020547,2]
[323341995,1713906658867,-1180.31,0.00020547,2]
[323341996,1713906658877,-7963.5,0.00020547,2]
[323341997,1713906658886,-5528.672814,0.00020548,2]
[323341998,1713906658895,-203.583665,0.00020548,2]
[323341999,1713906658904,-203.583665,0.00020548,2]
[323342000,1713906658914,-203.583665,0.00020548,2]
[323342001,1713906658923,-407.16733,0.00020555,2]
[323342002,1713906658932,-203.583665,0.00020555,2]
[323342003,1713906658941,-203.583665,0.00020555,2]
[323342004,1713906658950,-203.583665,0.00020555,2]
[323342005,1713906658960,-203.583665,0.00020555,2]
[323342006,1713906658970,-407.16733,0.00020555,2]
[323342007,1713906658979,-203.583665,0.00020555,2]
[323342008,1713906658988,-203.583665,0.00020555,2]
[323342009,1713906658998,-400.0,0.00020578,2]
[323342010,1713906659007,-152.44104989,0.00020612,2]
[323342011,1713906659017,-153.0,0.00020705,2]
[323342012,1713906659027,-153.0,0.00020705,2]
[323342013,1713906659036,-153.0,0.00020705,2]
[323342014,1713906659045,-1000.0,0.000208,2]
[323342015,1713906659054,-2000.0,0.000208,2]
[323342016,1713906659063,-2000.0,0.000208,2]
[323342017,1713906659073,-177.0,0.000208,2]
[323342018,1713906659082,-192.462242,0.000208,2]
[323342019,1713906659092,-192.462242,0.000208,2]
[323342020,1713906659102,-543.03858223,0.00020821,2]